fUSD/lending_fUSD_20240402
["ID","MTS","AMOUNT","RATE_DAILY","PERIOD"]
[321245352,1712016425098,-826.26133752,0.00037,2]
[321245357,1712016546103,-205.68422388,0.00037,2]
[321245358,1712016546125,-156.24,0.00037808,2]
[321245359,1712016546146,-156.77,0.00037808,2]
[321245360,1712016546166,-9250.64635268,0.0004,2]
[321245365,1712016567113,-6786.5039,0.0004,2]
[321245378,1712016631674,-431.14331929,0.0004,2]
[321245379,1712016631687,-575.17710851,0.0004,2]
[321245380,1712016631734,-1219.90806987,0.0004,2]
[321245381,1712016631746,-816.24453498,0.0004,2]
[321245382,1712016631793,-1215.53412018,0.0004,2]
[321245383,1712016631809,-1800.18272958,0.0004,2]
[321245384,1712016631819,-3320.77936281,0.0005,2]
[321245403,1712016637575,-10679.22063719,0.0005,2]
[321245404,1712016637586,-158.33017616,0.000539,2]
[321245405,1712016637598,-754.25021428,0.00054,120]
[321245406,1712016637608,-720.98682566,0.00054799,4]
[321245407,1712016637618,-1500.0,0.000548,2]
[321245408,1712016637627,-278.61,0.00054942,2]
[321245409,1712016637637,-200.0,0.00055,120]
[321245410,1712016637646,-323.57231418,0.00056796,2]
[321245411,1712016637656,-173.5445,0.00056796,120]
[321245412,1712016637666,-454.95,0.00056847,120]
[321245413,1712016637675,-151.22,0.0005687,120]
[321245414,1712016637684,-17170.09086483,0.00056877,2]
[321245415,1712016637694,-8487.84104363,0.0005688,36]
[321245416,1712016639854,-2e-08,0.0005688,36]
[321245448,1712016642876,-4950.1889616,0.0005688,36]
[321245449,1712016642892,-6949.51239122,0.0005688,36]
[321245450,1712016642902,-13399.4635229,0.0005688,7]
[321245466,1712016647219,-26489.68922651,0.0005688,7]
[321245467,1712016647276,-2887.20682701,0.0005688,7]
[321245469,1712016763911,404.51729188,0.0003,4]
[321245470,1712017707306,-166.72581957,0.000326,2]
[321245471,1712017707328,-18.27418043,0.000327,2]
[321245472,1712017760099,-281.72581957,0.000327,2]
[321245473,1712017760123,-271.0,0.000328,2]
[321245474,1712017764139,-155.94,0.00037808,2]
[321245475,1712017764162,-166.72581957,0.00040657,2]
[321245476,1712017764259,720.98682566,0.00043,4]
[321245490,1712017831692,-155.0,0.00043323,2]
[321245491,1712017831703,-254.38,0.00046971,2]
[321245492,1712017831712,-71.38309866,0.00048,120]
[321245493,1712017832655,-79.61690134,0.00048,120]
[321245494,1712017832667,-166.72581957,0.00048713,2]
[321245495,1712017832677,-155.94,0.00048828,2]
[321245496,1712017832687,-151.0,0.0005,120]
[321245497,1712017832698,-152.0,0.00050122,3]
[321245498,1712017832708,-300.0,0.0005199,30]
[321245499,1712017832718,-433.09,0.00052842,2]
[321245500,1712017832729,-151.0,0.00054,120]
[321245501,1712017832740,-207.88455727,0.000542,2]
[321245502,1712017832751,-785.57,0.00054391,120]
[321245503,1712017832761,-151.87,0.00054643,120]
[321245504,1712017832771,-625.3,0.00054703,2]
[321245505,1712017832782,-166.30837723,0.0005473,4]
[321245506,1712017832791,-5141.54868558,0.00054731,2]
[321245507,1712017832803,-1232.936,0.00054731,2]
[321245518,1712017837724,-3206.3410063,0.00054731,2]
[321245519,1712017837779,-13929.916,0.00054731,2]
[321245520,1712017837836,-389.25830812,0.00054731,2]
[321245521,1712017837845,-435.20655584,0.00054738,2]
[321245522,1712017837857,-439.9044971,0.00054738,2]
[321245523,1712017837892,-586.36894706,0.00054738,2]
[321245524,1712017837902,-379.12,0.00054745,120]
[321245525,1712017837912,-1000.0,0.00054771,120]
[321245526,1712017837922,-662.27,0.00054823,30]
[321245527,1712017837932,-171.4,0.00054837,10]
[321245528,1712017837941,-274.68,0.00054851,2]
[321245529,1712017837950,-300.00000006,0.00055,120]
[321245530,1712017837960,-499.99,0.00055,2]
[321245531,1712017837971,-433.09,0.00055105,2]
[321245532,1712017837980,-169.66,0.00055137,2]
[321245533,1712017837990,-162.61,0.00055193,120]
[321245534,1712017837999,-907.8651472,0.00055459,2]
[321245535,1712017838008,-1330.3,0.00055469,120]
[321245536,1712017838016,-156.54,0.00055519,2]
[321245537,1712017838025,-2593.13,0.00055547,2]
[321245538,1712017838034,-2000.0,0.00056,120]
[321245539,1712017838043,-12561.4349,0.00056251,2]
[321245540,1712017838053,-150.0,0.0005628,14]
[321245541,1712017838061,-150.0,0.00056308,14]
[321245542,1712017838071,-1431.361992,0.00056381,2]
[321245543,1712017838081,-150.0,0.00056433,14]
[321245544,1712017838091,-150.0,0.00056443,14]
[321245545,1712017838100,-150.0,0.00056478,14]
[321245546,1712017838110,-800.0,0.000565,20]
[321245547,1712017838120,-1600.0,0.000566,20]
[321245548,1712017838130,-150.0,0.00056617,14]
[321245549,1712017838143,-150.0,0.00056624,14]
[321245550,1712017838156,-150.0,0.00056624,14]
[321245551,1712017838166,-171.4,0.00056629,10]
[321245552,1712017838175,-1431.361992,0.00056631,2]
[321245553,1712017838186,-5852.18605833,0.00056679,2]
[321245554,1712017838196,-612.4536,0.0005668,2]
[321245555,1712017838206,-1000.0,0.0005668,2]
[321245556,1712017838221,-4207.5146,0.0005668,2]
[321245557,1712017838235,-2500.0,0.0005668,2]
[321245558,1712017838248,-250.96892258,0.0005668,14]
[321245559,1712017838261,-176.07424118,0.0005668,2]
[321245560,1712017838273,-321.94825724,0.0005668,2]
[321245561,1712017838283,-967.82181034,0.0005668,28]
[321245562,1712017838293,-167.040209,0.00056688,105]
[321245563,1712017838306,-167.040209,0.00056698,105]
[321245564,1712017838318,-2400.0,0.000567,20]
[321245565,1712017838330,-176.07424114,0.00056705,2]
[321245566,1712017838342,-167.040209,0.00056708,106]
[321245567,1712017838354,-167.040209,0.00056718,106]
[321245568,1712017838366,-157.040209,0.00056728,107]
[321245569,1712017838377,-176.07424114,0.0005673,2]
[321245570,1712017838390,-167.040209,0.00056737,102]
[321245571,1712017838403,-157.040209,0.00056738,107]
[321245572,1712017838415,-167.040209,0.00056747,102]
[321245573,1712017838425,-157.040209,0.00056748,108]
[321245574,1712017838435,-176.07424114,0.00056755,2]
[321245575,1712017838446,-157.040209,0.00056757,103]
[321245576,1712017838458,-157.040209,0.00056758,108]
[321245577,1712017838469,-150.0,0.00056766,14]
[321245578,1712017838481,-157.040209,0.00056767,104]
[321245579,1712017838493,-157.040209,0.00056768,109]
[321245580,1712017838504,-174.63,0.0005677,30]
[321245581,1712017838515,-166.72581957,0.0005677,2]
[321245582,1712017838526,-5645250.41140241,0.00056774,5]
[321245583,1712017838539,-157.040209,0.00056777,105]
[321245584,1712017838552,-157.040209,0.00056778,109]
[321245585,1712017838563,-496.51272078,0.00056779,120]
[321245586,1712017838574,-500.0,0.00056779,2]
[321245587,1712017838584,-500.0,0.00056779,120]
[321245588,1712017838597,-391.0,0.00056779,120]
[321245589,1712017838610,-500.0,0.00056779,2]
[321245590,1712017838620,-500.0,0.00056779,120]
[321245591,1712017838633,-500.0,0.00056779,120]
[321245592,1712017838647,-500.0,0.00056779,120]
[321245593,1712017838658,-500.0,0.00056779,120]
[321245594,1712017838671,-500.0,0.00056779,120]
[321245595,1712017838683,-460.9,0.00056779,120]
[321245596,1712017838694,-150.0,0.00056779,120]
[321245597,1712017838707,-500.0,0.00056779,120]
[321245598,1712017838718,-500.0,0.00056779,120]
[321245599,1712017838730,-500.0,0.00056779,120]
[321245600,1712017838743,-354.52,0.00056779,120]
[321245601,1712017838754,-500.0,0.00056779,7]
[321245602,1712017838766,-500.0,0.00056779,120]
[321245603,1712017838777,-500.0,0.00056779,120]
[321245604,1712017838790,-360.23,0.00056779,120]
[321245605,1712017838803,-500.0,0.00056779,120]
[321245606,1712017838815,-500.0,0.00056779,120]
[321245607,1712017838828,-500.0,0.00056779,120]
[321245608,1712017838840,-500.0,0.00056779,120]
[321245609,1712017838850,-500.0,0.00056779,120]
[321245610,1712017838861,-500.0,0.00056779,120]
[321245611,1712017838872,-500.0,0.00056779,120]
[321245612,1712017838882,-2954.93,0.00056779,120]
[321245613,1712017838893,-500.0,0.00056779,120]
[321245614,1712017838905,-500.0,0.00056779,120]
[321245615,1712017838918,-500.0,0.00056779,120]
[321245616,1712017838930,-3332.29,0.00056779,120]
[321245617,1712017838941,-500.0,0.00056779,120]
[321245618,1712017838952,-500.0,0.00056779,120]
[321245619,1712017838964,-605.71,0.00056779,120]
[321245620,1712017838975,-500.0,0.00056779,120]
[321245621,1712017838985,-500.0,0.00056779,120]
[321245622,1712017838995,-500.0,0.00056779,120]
[321245623,1712017839005,-1000.0,0.00056779,120]
[321245624,1712017839014,-500.0,0.00056779,120]
[321245625,1712017839025,-634.51,0.00056779,120]
[321245626,1712017839037,-500.0,0.00056779,120]
[321245627,1712017839049,-677.95,0.00056779,120]
[321245628,1712017839060,-500.0,0.00056779,3]
[321245629,1712017839070,-500.0,0.00056779,120]
[321245630,1712017839082,-500.0,0.00056779,120]
[321245631,1712017839092,-500.0,0.00056779,120]
[321245632,1712017839102,-500.0,0.00056779,120]
[321245633,1712017839113,-500.0,0.00056779,120]
[321245634,1712017839123,-583.05,0.00056779,120]
[321245635,1712017839134,-500.0,0.00056779,120]
[321245636,1712017839146,-736.92,0.00056779,120]
[321245637,1712017839157,-500.0,0.00056779,120]
[321245638,1712017839168,-500.0,0.00056779,120]
[321245639,1712017839178,-500.0,0.00056779,120]
[321245640,1712017839189,-500.0,0.00056779,120]
[321245641,1712017839199,-567.69,0.00056779,120]
[321245642,1712017839211,-500.0,0.00056779,120]
[321245643,1712017839222,-500.0,0.00056779,120]
[321245644,1712017839233,-500.0,0.00056779,120]
[321245645,1712017839243,-500.0,0.00056779,120]
[321245646,1712017839253,-500.0,0.00056779,120]
[321245647,1712017839265,-500.0,0.00056779,120]
[321245648,1712017839277,-500.0,0.00056779,120]
[321245649,1712017839287,-500.0,0.00056779,7]
[321245650,1712017839298,-500.0,0.00056779,120]
[321245651,1712017839309,-500.0,0.00056779,120]
[321245652,1712017839321,-500.0,0.00056779,120]
[321245653,1712017839331,-500.0,0.00056779,120]
[321245654,1712017839342,-500.0,0.00056779,120]
[321245655,1712017839352,-500.0,0.00056779,120]
[321245656,1712017839363,-500.0,0.00056779,120]
[321245657,1712017839374,-500.0,0.00056779,120]
[321245658,1712017839384,-500.0,0.00056779,120]
[321245659,1712017839395,-1697.27,0.00056779,120]
[321245660,1712017839406,-500.0,0.00056779,120]
[321245661,1712017839416,-500.0,0.00056779,120]
[321245662,1712017839426,-500.0,0.00056779,120]
[321245663,1712017839437,-500.0,0.00056779,120]
[321245664,1712017839447,-500.0,0.00056779,120]
[321245665,1712017839458,-628.78,0.00056779,120]
[321245666,1712017839469,-500.0,0.00056779,120]
[321245667,1712017839480,-993.09,0.00056779,120]
[321245668,1712017839490,-500.0,0.00056779,120]
[321245669,1712017839501,-500.0,0.00056779,120]
[321245670,1712017839511,-500.0,0.00056779,120]
[321245671,1712017839522,-500.0,0.00056779,120]
[321245672,1712017839532,-500.0,0.00056779,120]
[321245674,1712017839543,-500.0,0.00056779,120]
[321245676,1712017839555,-500.0,0.00056779,120]
[321245677,1712017839566,-500.0,0.00056779,120]
[321245678,1712017839576,-854.7,0.00056779,120]
[321245679,1712017839586,-500.0,0.00056779,120]
[321245680,1712017839596,-500.0,0.00056779,120]
[321245681,1712017839606,-196.82,0.00056779,120]
[321245682,1712017839616,-500.0,0.00056779,120]
[321245686,1712017839627,-500.0,0.00056779,120]
[321245690,1712017839638,-500.0,0.00056779,120]
[321245693,1712017839650,-500.0,0.00056779,120]
[321245696,1712017839660,-500.0,0.00056779,120]
[321245699,1712017839670,-500.0,0.00056779,120]
[321245703,1712017839681,-500.0,0.00056779,120]
[321245706,1712017839692,-4503.76,0.00056779,120]
[321245710,1712017839702,-500.0,0.00056779,120]
[321245713,1712017839713,-500.0,0.00056779,120]
[321245716,1712017839724,-500.0,0.00056779,120]
[321245719,1712017839734,-500.0,0.00056779,120]
[321245722,1712017839745,-500.0,0.00056779,120]
[321245725,1712017839756,-500.0,0.00056779,120]
[321245730,1712017839767,-491.12,0.00056779,120]
[321245733,1712017839777,-230.98,0.00056779,120]
[321245736,1712017839788,-500.0,0.00056779,120]
[321245739,1712017839799,-500.0,0.00056779,120]
[321245742,1712017839810,-500.0,0.00056779,120]
[321245746,1712017839821,-500.0,0.00056779,120]
[321245748,1712017839832,-500.0,0.00056779,120]
[321245750,1712017839842,-500.0,0.00056779,120]
[321245752,1712017839851,-500.0,0.00056779,120]
[321245754,1712017839861,-500.0,0.00056779,120]
[321245756,1712017839870,-434.77015128,0.00056779,120]
[321245758,1712017839880,-500.0,0.00056779,120]
[321245760,1712017839889,-500.0,0.00056779,120]
[321245762,1712017839899,-500.0,0.00056779,120]
[321245764,1712017839909,-8408.07,0.00056779,120]
[321245766,1712017839918,-500.0,0.00056779,21]
[321245768,1712017839927,-500.0,0.00056779,120]
[321245789,1712017840135,-500.0,0.00056779,120]
[321245791,1712017840154,-500.0,0.00056779,120]
[321245793,1712017840165,-500.0,0.00056779,120]
[321245795,1712017840174,-500.0,0.00056779,120]
[321245796,1712017840184,-1281.83,0.00056779,120]
[321245798,1712017840194,-500.0,0.00056779,120]
[321245800,1712017840203,-500.0,0.00056779,120]
[321245802,1712017840213,-500.0,0.00056779,120]
[321245803,1712017840222,-500.0,0.00056779,120]
[321245805,1712017840231,-500.0,0.00056779,120]
[321245807,1712017840241,-500.0,0.00056779,120]
[321245809,1712017840250,-500.0,0.00056779,120]
[321245811,1712017840259,-500.0,0.00056779,120]
[321245812,1712017840268,-500.0,0.00056779,120]
[321245814,1712017840277,-500.0,0.00056779,120]
[321245816,1712017840286,-500.0,0.00056779,120]
[321245817,1712017840295,-500.0,0.00056779,120]
[321245819,1712017840305,-500.0,0.00056779,120]
[321245821,1712017840315,-500.0,0.00056779,120]
[321245823,1712017840325,-500.0,0.00056779,120]
[321245824,1712017840334,-500.0,0.00056779,120]
[321245826,1712017840343,-500.0,0.00056779,120]
[321245827,1712017840352,-500.0,0.00056779,120]
[321245828,1712017840361,-500.0,0.00056779,120]
[321245830,1712017840370,-500.0,0.00056779,120]
[321245831,1712017840380,-245000.0,0.0005678,2]
[321245832,1712017840389,-212.0,0.0005678,2]
[321245833,1712017840402,-23964.3356,0.0005678,2]
[321245834,1712017840412,-94038.55,0.0005678,2]
[321245835,1712017840421,-500.0,0.0005678,2]
[321245836,1712017840431,-156.93753585,0.0005678,70]
[321245837,1712017840440,-3436.46943022,0.0005678,35]
[321245838,1712017840449,-176.07424114,0.0005678,2]
[321245839,1712017840458,-151.0,0.0005678,120]
[321245840,1712017840469,-151.0,0.0005678,7]
[321245841,1712017840478,-151.0,0.0005678,120]
[321245842,1712017840487,-151.0,0.0005678,120]
[321245843,1712017840496,-151.0,0.0005678,120]
[321245844,1712017840506,-151.0,0.0005678,120]
[321245845,1712017840514,-2415.45232701,0.0005678,2]
[321245846,1712017840523,-203.96862409,0.0005678,2]
[321245847,1712017840533,-153.518404,0.0005678,120]
[321245848,1712017840542,-151.0,0.0005678,120]
[321245849,1712017840551,-249.240405,0.0005678,7]
[321245850,1712017840560,-168.27650685,0.00056796,66]
[321245851,1712017840569,-3200.0,0.000568,20]
[321245852,1712017840577,-169.4650784,0.00056822,60]
[321245853,1712017840587,-150.0,0.00056846,14]
[321245854,1712017840596,-150.5,0.0005685,15]
[321245855,1712017840605,-737.0,0.0005685,15]
[321245856,1712017840614,-929.0,0.0005685,15]
[321245857,1712017840623,-150.5,0.0005686,15]
[321245858,1712017840632,-737.0,0.0005686,15]
[321245859,1712017840641,-929.0,0.0005686,15]
[321245860,1712017840653,-151.55,0.0005686,120]
[321245861,1712017840662,-200.6792959,0.0005686,7]
[321245862,1712017840671,-150.0,0.00056865,14]
[321245863,1712017840680,-242.31153954,0.00056867,2]
[321245864,1712017840689,-151.55,0.0005687,120]
[321245865,1712017840697,-200.6792959,0.0005687,7]
[321245866,1712017840707,-150.5,0.0005687,15]
[321245867,1712017840716,-737.0,0.0005687,15]
[321245868,1712017840726,-929.0,0.0005687,15]
[321245869,1712017840735,-574050.8575834,0.0005687,30]
[321245870,1712017840743,-172.900531,0.0005687,14]
[321245871,1712017840753,-151.0,0.0005687,120]
[321245872,1712017840762,-153.749111,0.0005687,120]
[321245873,1712017840771,-151.0,0.0005687,120]
[321245874,1712017840780,-151.0,0.0005687,7]
[321245875,1712017840789,-151.0,0.0005687,120]
[321245876,1712017840800,-151.0,0.0005687,120]
[321245877,1712017840809,-200.0,0.0005687,90]
[321245878,1712017840818,-151.55,0.0005687,120]
[321245879,1712017840829,-151.0,0.0005687,120]
[321245880,1712017840840,-174.63,0.0005687,30]
[321245881,1712017840850,-200.6792959,0.0005687,7]
[321245882,1712017840860,-500.0,0.00056876,120]
[321245883,1712017840867,-159819.0,0.00056877,15]
[321245884,1712017840876,-242.31153954,0.00056877,2]
[321245885,1712017840885,-964.77251522,0.00056877,4]
[321245886,1712017840894,-151.0,0.00056877,120]
[321245887,1712017840905,-151.0,0.00056877,120]
[321245888,1712017840913,-151.0,0.00056877,120]
[321245889,1712017840923,-151.0,0.00056877,30]
[321245890,1712017840932,-151.0,0.00056877,120]
[321245891,1712017840941,-151.0,0.00056877,120]
[321245892,1712017840950,-321.251073,0.00056877,120]
[321245893,1712017840961,-321.251073,0.00056877,120]
[321245894,1712017840970,-151.0,0.00056877,120]
[321245895,1712017840980,-151.0,0.00056877,120]
[321245896,1712017840989,-151.0,0.00056877,120]
[321245897,1712017840999,-151.0,0.00056877,120]
[321245898,1712017841010,-1839.84938,0.00056877,82]
[321245899,1712017841019,-151.0,0.00056877,7]
[321245900,1712017841028,-151.0,0.00056877,120]
[321245901,1712017841038,-151.0,0.00056877,120]
[321245902,1712017841047,-152.741206,0.00056877,120]
[321245903,1712017841057,-1696.18077678,0.00056877,2]
[321245904,1712017841068,-19311.82254872,0.00056878,4]
[321245905,1712017841077,-805.27279054,0.00056879,2]
[321245906,1712017841089,-155.0,0.00056879,2]
[321245907,1712017841098,-25500.23641127,0.00056879,4]
[321245908,1712017841108,-500.0,0.00056879,120]
[321245909,1712017841117,-252.17360777,0.00056879,120]
[321245910,1712017841127,-652.98250908,0.00056879,2]
[321245911,1712017841138,-988.0,0.00056879,120]
[321245912,1712017841148,-988.0,0.00056879,120]
[321245913,1712017841158,-988.0,0.00056879,120]
[321245914,1712017841167,-988.0,0.00056879,120]
[321245915,1712017841177,-1014.23,0.00056879,120]
[321245916,1712017841186,-150.0,0.00056879,120]
[321245917,1712017841194,-522.31725361,0.0005688,31]
[321245918,1712017841203,-560389.95083821,0.0005688,36]
[321245919,1712017841213,-1279913.54856766,0.0005688,7]
[321245920,1712017841231,-864731.9645838,0.0005688,7]
[321245921,1712017841240,-637.3252171,0.0005688,2]
[321245922,1712017841249,-184.582325,0.0005688,120]
[321245923,1712017841259,-266.357431,0.0005688,120]
[321245924,1712017841269,-280.448818,0.0005688,30]
[321245925,1712017841278,-151.0,0.0005688,120]
[321245926,1712017841287,-153.592751,0.0005688,120]
[321245927,1712017841297,-151.0,0.0005688,120]
[321245928,1712017841307,-233.185651,0.0005688,120]
[321245929,1712017841317,-321.251073,0.0005688,120]
[321245930,1712017841326,-321.251073,0.0005688,120]
[321245931,1712017841336,-321.251073,0.0005688,120]
[321245932,1712017841345,-321.251073,0.0005688,120]
[321245933,1712017841354,-151.0,0.0005688,120]
[321245934,1712017841364,-290.927854,0.0005688,120]
[321245935,1712017841374,-151.0,0.0005688,120]
[321245936,1712017841384,-222.332524,0.0005688,120]
[321245937,1712017841393,-151.0,0.0005688,7]
[321245938,1712017841404,-151.0,0.0005688,7]
[321245939,1712017841413,-151.0,0.0005688,120]
[321245940,1712017841422,-151.0,0.0005688,120]
[321245941,1712017841432,-251.523703,0.0005688,120]
[321245942,1712017841441,-2013.74,0.000569,30]
[321245943,1712017841450,-790.97,0.000569,30]
[321245944,1712017841459,-551.93,0.000569,14]
[321245945,1712017841468,-4100.0,0.000569,20]
[321245946,1712017841477,-3778.9826581,0.0005693,2]
[321245947,1712017841488,-150.0,0.00056969,14]
[321245948,1712017841497,-150.0,0.00056971,14]
[321245949,1712017841506,-2058.0,0.00056986,120]
[321245950,1712017841515,-2031.0,0.00056986,120]
[321245951,1712017841525,-200.0,0.00057,120]
[321245952,1712017841536,-5852.1860583,0.00057037,2]
[321245953,1712017841546,-150.0,0.00057052,120]
[321245954,1712017841556,-500.0,0.00057053,2]
[321245955,1712017841565,-500.0,0.00057053,120]
[321245956,1712017841575,-500.0,0.00057053,2]
[321245957,1712017841585,-500.0,0.00057053,120]
[321245958,1712017841595,-429.57,0.00057053,120]
[321245959,1712017841604,-500.0,0.00057053,120]
[321245960,1712017841614,-294.69532636,0.00057053,120]
[321245961,1712017841624,-500.0,0.00057053,120]
[321245962,1712017841633,-150.0,0.00057053,120]
[321245963,1712017841643,-500.0,0.00057053,120]
[321245964,1712017841654,-500.0,0.00057053,120]
[321245965,1712017841664,-500.0,0.00057053,7]
[321245966,1712017841674,-158.82267,0.00057053,120]
[321245967,1712017841683,-500.0,0.00057053,120]
[321245968,1712017841692,-500.0,0.00057053,120]
[321245969,1712017841701,-500.0,0.00057053,120]
[321245970,1712017841710,-500.0,0.00057053,120]
[321245971,1712017841720,-500.0,0.00057053,120]
[321245972,1712017841729,-500.0,0.00057053,120]
[321245973,1712017841738,-500.0,0.00057053,120]
[321245974,1712017841746,-500.0,0.00057053,120]
[321245975,1712017841756,-2954.93,0.00057053,120]
[321245976,1712017841765,-500.0,0.00057053,120]
[321245977,1712017841774,-500.0,0.00057053,120]
[321245978,1712017841784,-500.0,0.00057053,120]
[321245979,1712017841793,-3332.29,0.00057053,120]
[321245980,1712017841802,-500.0,0.00057053,120]
[321245981,1712017841811,-500.0,0.00057053,120]
[321245982,1712017841821,-500.0,0.00057053,120]
[321245983,1712017841830,-500.0,0.00057053,120]
[321245984,1712017841839,-500.0,0.00057053,120]
[321245985,1712017841849,-500.0,0.00057053,120]
[321245986,1712017841859,-634.51,0.00057053,120]
[321245987,1712017841868,-500.0,0.00057053,120]
[321245988,1712017841877,-677.95,0.00057053,120]
[321245989,1712017841887,-500.0,0.00057053,3]
[321245990,1712017841897,-500.0,0.00057053,120]
[321245991,1712017841909,-500.0,0.00057053,120]
[321245992,1712017841919,-586.28,0.00057053,120]
[321245993,1712017841929,-500.0,0.00057053,120]
[321245994,1712017841939,-500.0,0.00057053,120]
[321245995,1712017841949,-583.05,0.00057053,120]
[321245996,1712017841958,-500.0,0.00057053,120]
[321245997,1712017841967,-736.92,0.00057053,120]
[321245998,1712017841976,-462.28,0.00057053,120]
[321245999,1712017841986,-333.64936,0.00057053,120]
[321246000,1712017841995,-500.0,0.00057053,120]
[321246001,1712017842005,-500.0,0.00057053,120]
[321246002,1712017842014,-567.69,0.00057053,120]
[321246003,1712017842023,-500.0,0.00057053,120]
[321246004,1712017842033,-500.0,0.00057053,120]
[321246005,1712017842042,-500.0,0.00057053,120]
[321246006,1712017842053,-500.0,0.00057053,120]
[321246007,1712017842063,-500.0,0.00057053,120]
[321246008,1712017842073,-500.0,0.00057053,120]
[321246009,1712017842083,-500.0,0.00057053,120]
[321246010,1712017842093,-500.0,0.00057053,7]
[321246011,1712017842104,-500.0,0.00057053,120]
[321246012,1712017842113,-500.0,0.00057053,120]
[321246013,1712017842123,-500.0,0.00057053,120]
[321246014,1712017842137,-199.371277,0.00057053,7]
[321246015,1712017842149,-500.0,0.00057053,120]
[321246016,1712017842158,-500.0,0.00057053,120]
[321246017,1712017842167,-500.0,0.00057053,120]
[321246018,1712017842178,-500.0,0.00057053,120]
[321246019,1712017842187,-500.0,0.00057053,120]
[321246020,1712017842197,-500.0,0.00057053,120]
[321246021,1712017842207,-1697.27,0.00057053,120]
[321246022,1712017842217,-500.0,0.00057053,120]
[321246023,1712017842227,-500.0,0.00057053,120]
[321246024,1712017842237,-500.0,0.00057053,120]
[321246025,1712017842247,-500.0,0.00057053,120]
[321246026,1712017842256,-151.0,0.00057053,120]
[321246027,1712017842266,-500.0,0.00057053,120]
[321246028,1712017842277,-628.78,0.00057053,120]
[321246029,1712017842287,-500.0,0.00057053,120]
[321246030,1712017842297,-993.09,0.00057053,120]
[321246031,1712017842306,-500.0,0.00057053,120]
[321246032,1712017842315,-585.54,0.00057053,120]
[321246033,1712017842325,-500.0,0.00057053,120]
[321246034,1712017842335,-500.0,0.00057053,120]
[321246035,1712017842345,-500.0,0.00057053,120]
[321246036,1712017842354,-500.0,0.00057053,120]
[321246037,1712017842363,-500.0,0.00057053,120]
[321246038,1712017842373,-500.0,0.00057053,120]
[321246039,1712017842382,-854.7,0.00057053,120]
[321246040,1712017842392,-500.0,0.00057053,120]
[321246041,1712017842402,-500.0,0.00057053,120]
[321246042,1712017842411,-500.0,0.00057053,120]
[321246043,1712017842421,-500.0,0.00057053,120]
[321246044,1712017842430,-500.0,0.00057053,120]
[321246045,1712017842440,-500.0,0.00057053,120]
[321246046,1712017842449,-500.0,0.00057053,120]
[321246047,1712017842458,-500.0,0.00057053,120]
[321246048,1712017842467,-500.0,0.00057053,120]
[321246049,1712017842478,-4503.76,0.00057053,120]
[321246050,1712017842487,-500.0,0.00057053,120]
[321246052,1712017842497,-500.0,0.00057053,120]
[321246054,1712017842506,-500.0,0.00057053,120]
[321246057,1712017842516,-500.0,0.00057053,120]
[321246058,1712017842525,-500.0,0.00057053,120]